bitfinex-derivatives/quotes_ETHF0:USTF0_20250621
["timestamp","ask_amount","ask_price","bid_price","bid_amount"]
[1750526405690,2.16558,2423.9,2423.8,0.82499]
[1750526405889,2.41572297,2423.9,2423.6,3.2078]
[1750526406089,1.07512297,2423.8,2423.6,3.2078]
[1750526406287,3.07792297,2423.8,2423.6,3.2078]
[1750526406490,0.82503,2423.7,2423.6,4.03285]
[1750526407188,2.82781,2423.8,2423.7,0.82503]
[1750526407393,0.82503,2423.7,2423.6,4.03284]
[1750526407695,2.82781,2423.8,2423.7,0.82503]
[1750526408293,2.82781,2423.8,2423.6,4.03284]
[1750526408685,2.0028,2423.8,2423.6,4.03283]
[1750526408895,2.82779,2423.8,2423.7,0.82503]
[1750526409082,2.82779,2423.8,2423.6,4.03284]
[1750526409791,2.82779,2423.8,2423.7,0.82503]
[1750526410292,0.82503,2423.7,2423.6,4.03283]
[1750526410498,2.17983,2423.7,2423.6,4.03283]
[1750526410691,1.3548,2423.7,2423.6,4.03283]
[1750526410887,2.17983,2423.7,2423.6,4.03286]
[1750526411396,2.17983,2423.7,2423.6,3.2078]
[1750526415492,0.82514,2423.4,2423.1,3.2078]
[1750526415693,1.9974,2423.3,2423.2,0.8252]
[1750526416294,2.82256,2423.3,2423.2,0.8252]
[1750526416602,0.8252,2423.2,2423.1,4.03302]
[1750526416796,2.1428,2423.2,2423.1,4.03302]
[1750526418387,0.82526,2423.1,2422.9,47.519]
[1750526418588,0.82526,2423.1,2422.9,0.82528]
[1750526418589,0.82529,2423.0,2422.9,0.82528]
[1750526418799,0.82526,2423.0,2422.9,0.82528]
[1750526419198,1.4182,2423.1,2423.0,0.82526]
[1750526419400,1.4182,2423.1,2422.8,9.7338]
[1750526419698,1.4182,2423.1,2422.9,0.8253]
[1750526419901,0.82528,2423.0,2422.9,0.8253]
[1750526420296,0.8253,2422.9,2422.8,7.35131]
[1750526420702,0.82538,2422.7,2422.5,3.8493]
[1750526420897,0.82538,2422.7,2422.6,0.82539]
[1750526421200,1.4236,2422.8,2422.7,0.82537]
[1750526423401,2.24893,2422.8,2422.7,0.82537]
[1750526423602,1.4236,2422.8,2422.7,0.82537]
[1750526426307,1.4236,2422.8,2422.4,2.76063]
[1750526426308,0.82538,2422.7,2422.6,0.82539]
[1750526426804,1.4236,2422.8,2422.2,51.3842]
[1750526427003,0.82543,2422.5,2422.4,0.82547]
[1750526427399,2.23433,2422.5,2422.4,0.82547]
[1750526427607,0.82548,2422.4,2422.3,0.82548]
[1750526427908,2.23438,2422.4,2422.3,0.82548]
[1750526428408,1.4089,2422.4,2422.3,0.82548]
[1750526429106,2.23437,2422.4,2422.3,0.82548]
[1750526431207,0.82552,2422.3,2422.2,0.82552]
[1750526431406,1.3123,2422.3,2422.2,0.82552]
[1750526432908,1.3123,2422.3,2422.1,6.529]
[1750526433109,7.11275875,2422.3,2421.9,3.2078]
[1750526433301,4.5201,2422.3,2421.9,3.2078]
[1750526433500,2.14077,2422.2,2422.1,0.82557]
[1750526433716,0.82559,2422.1,2422.0,0.82558]
[1750526433908,2.81379,2422.1,2422.0,0.82558]
[1750526434209,0.8256,2422.0,2421.9,3.2078]
[1750526434410,1.3152,2422.0,2421.9,4.03342]
[1750526434908,2.1408,2422.0,2421.9,4.03342]
[1750526435108,1.3152,2422.0,2421.9,4.03342]
[1750526435817,0.06847599,2422.1,2422.0,0.8256]
[1750526436003,0.06847599,2422.1,2422.0,4.06115875]
[1750526436207,0.06847599,2422.1,2422.0,5.37515875]
[1750526441517,0.06847599,2422.1,2422.0,4.06115875]
[1750526442814,0.06847599,2422.1,2422.0,7.26895875]
[1750526449024,0.06847599,2422.1,2422.0,6.62605875]
[1750526449423,0.06847599,2422.1,2422.0,13.15705875]
[1750526449725,0.06847599,2422.1,2422.0,6.62605875]
[1750526449922,0.06847599,2422.1,2422.0,13.15705875]
[1750526453335,2.29374599,2422.1,2422.0,3.2078]
[1750526453539,0.82565,2421.9,2421.8,0.82564]
[1750526454335,2.15565,2421.9,2421.8,0.82564]
[1750526455339,1.33,2421.9,2421.8,0.82564]
[1750526455638,0.06847599,2422.1,2422.0,0.8256]
[1750526455840,0.06847599,2422.1,2422.0,3.41825875]
[1750526456040,0.06847599,2422.1,2422.0,9.91125875]
[1750526460148,0.06847599,2422.1,2422.0,7.3186]
[1750526460353,1.44667599,2422.1,2422.0,9.91125875]
[1750526461148,1.44667599,2422.1,2422.0,13.19949091]
[1750526461352,1.44667599,2422.1,2422.0,10.60683216]
[1750526465951,0.6801,2422.2,2422.1,0.82557]
[1750526466150,0.6801,2422.2,2422.1,3.41822875]
[1750526466753,2.0663,2422.2,2422.1,3.41822875]
[1750526467147,3.2078,2422.6,2422.2,0.82554]
[1750526467450,0.6448,2422.5,2422.4,4.11370216]
[1750526467744,2.85643,2422.5,2422.4,4.11370216]
[1750526468152,2.031,2422.5,2422.4,0.82547]
[1750526468949,2.031,2422.5,2422.4,4.11370216]
[1750526469351,2.031,2422.5,2422.4,0.82547]
[1750526470550,3.2078,2422.6,2422.5,0.82543]
[1750526470952,4.572,2422.6,2422.5,0.82543]
[1750526471550,5.39743,2422.6,2422.5,0.82543]
[1750526472551,4.572,2422.6,2422.5,0.82543]
[1750526472944,4.572,2422.6,2422.4,0.82544]
[1750526473151,3.2078,2422.6,2422.5,0.82543]
[1750526473752,4.0332,2422.6,2422.5,0.82543]
[1750526474060,3.2078,2422.6,2422.3,6.493]
[1750526474356,0.82547,2422.4,2422.3,7.31848]
[1750526474556,0.82547,2422.4,2422.3,0.82548]
[1750526476859,0.85225071,2422.4,2422.3,0.82548]
[1750526477757,0.02678071,2422.4,2422.3,0.82548]
[1750526479963,0.0952567,2422.4,2422.3,0.82548]
[1750526480463,0.9207267,2422.4,2422.3,0.82548]
[1750526481161,0.0952567,2422.4,2422.3,0.82548]
[1750526483964,0.9207267,2422.4,2422.3,0.82548]
[1750526484153,0.82554,2422.2,2422.1,3.28823216]
[1750526484359,0.8256,2422.0,2421.9,3.28823216]
[1750526484551,0.82559,2422.1,2422.0,0.8256]
[1750526484950,0.85237071,2422.1,2422.0,0.8256]
[1750526485155,0.02678071,2422.1,2422.0,0.8256]
[1750526485356,0.02678071,2422.1,2422.0,3.41825875]
[1750526485658,0.02678071,2422.1,2422.0,6.70649091]
[1750526492472,1.33328071,2422.1,2422.0,6.70649091]
[1750526492770,1.33328071,2422.1,2422.0,10.58483216]
[1750526494961,1.33328071,2422.1,2422.0,7.2966]
[1750526495267,1.4017567,2422.1,2422.0,7.2966]
[1750526495571,1.4017567,2422.1,2422.0,0.8256]
[1750526495864,2.2273267,2422.1,2422.0,0.8256]
[1750526496258,1.33328071,2422.1,2422.0,0.8256]
[1750526496976,2.15885071,2422.1,2422.0,0.8256]
[1750526497175,0.8256,2422.0,2421.9,3.28823216]
[1750526497482,2.003,2422.0,2421.9,0.82564]
[1750526497677,2.82861,2422.0,2421.9,0.82564]
[1750526497878,2.85539071,2422.0,2421.9,0.82564]
[1750526498066,2.02978071,2422.0,2421.9,0.82564]
[1750526499484,0.02678071,2422.0,2421.9,0.82564]
[1750526510684,0.0952567,2422.0,2421.9,0.82564]
[1750526512087,0.0952567,2422.0,2421.9,7.29664]
[1750526526493,1.4130567,2422.0,2421.9,7.29664]
[1750526533106,2.0885567,2422.0,2421.9,7.29664]
[1750526533511,2.0885567,2422.0,2421.9,0.82564]
[1750526533996,2.0885567,2422.0,2421.9,7.28864]
[1750526540197,2.0885567,2422.0,2421.9,32.40064]
[1750526541408,2.0885567,2422.0,2421.8,10.74247519]
[1750526541711,1.3091,2421.9,2421.8,34.7818]
[1750526541910,2.16152071,2421.9,2421.8,34.7818]
[1750526542298,2.16152071,2421.9,2421.8,35.60747]
[1750526542911,2.16152071,2421.9,2421.8,3.29342132]
[1750526543116,0.82571,2421.7,2421.6,3.29342132]
[1750526543609,0.82578,2421.5,2421.4,3.29342132]
[1750526544016,0.82581,2421.4,2421.3,10.58226132]
[1750526544314,2.91161,2421.4,2421.3,10.58226132]
[1750526544512,0.82584,2421.3,2421.2,6.50122132]
[1750526544711,2.21044,2421.3,2421.2,3.2078]
[1750526545209,2.23722071,2421.3,2421.2,3.2078]
[1750526546717,7.23722071,2421.3,2421.2,3.2078]
[1750526546903,7.23722071,2421.3,2420.8,10.49481]
[1750526546904,0.82597,2421.0,2420.8,10.49481]
[1750526547108,0.73398071,2420.9,2420.8,10.49481]
[1750526547302,2.05338071,2420.9,2420.8,10.49481]
[1750526548416,2.87936071,2420.9,2420.8,9.6688]
[1750526548612,2.87936071,2420.9,2420.8,3.2078]
[1750526548817,0.82606,2420.7,2420.5,9.6688]
[1750526549114,0.82606,2420.7,2420.6,0.79929929]
[1750526549417,0.7072,2420.9,2420.2,28.40642132]
[1750526549418,0.82613,2420.5,2420.4,0.82614]
[1750526549612,0.8261,2420.6,2420.5,0.82612]
[1750526549916,0.82606,2420.7,2420.6,0.82608]
[1750526550514,0.6803,2420.8,2420.2,9.6688]
[1750526550515,1.50634,2420.8,2420.3,2.06546]
[1750526550716,0.6803,2420.8,2420.7,3.41870875]
[1750526552016,0.6803,2420.8,2420.7,0.82605]
[1750526557644,0.6803,2420.8,2420.7,3.41870875]
[1750526560318,0.6803,2420.8,2420.7,0.82605]
[1750526561023,0.8261,2420.6,2420.5,0.82609]
[1750526561225,0.82608,2420.7,2420.6,0.82607]
[1750526561719,0.82608,2420.7,2420.3,0.6857]
[1750526561923,5.80045875,2420.7,2420.2,3.2078]
[1750526562119,0.82617,2420.4,2420.3,0.82618]
[1750526562422,0.82618,2420.3,2420.2,4.03399]
[1750526562624,0.82618,2420.3,2420.2,0.82619]
[1750526562848,4.03398,2420.4,2420.3,0.82618]
[1750526564127,0.82619,2420.3,2420.2,0.82619]
[1750526564328,0.6458,2420.3,2420.2,0.82619]
[1750526565632,0.6458,2420.3,2420.1,0.82623]
[1750526565821,1.47201,2420.3,2420.2,0.82622]
[1750526566026,0.6458,2420.3,2420.2,0.82622]
[1750526566217,1.472,2420.3,2420.2,0.82622]
[1750526566623,0.82623,2420.2,2420.1,0.82623]
[1750526566823,1.29,2420.2,2419.6,2.06602]
[1750526567035,0.82629,2420.0,2419.9,0.8263]
[1750526567323,0.82636,2419.8,2419.7,0.82639]
[1750526567529,3.2078,2419.8,2419.7,0.82639]
[1750526567928,5.1776,2419.8,2419.7,0.82639]
[1750526570041,6.00396,2419.8,2419.7,0.82639]
[1750526570224,0.8264,2419.7,2419.6,0.82641]
[1750526570421,1.3481,2419.7,2419.6,0.82641]
[1750526572026,2.17449,2419.7,2419.6,0.82641]
[1750526572227,1.3481,2419.7,2419.4,0.6472]
[1750526572428,1.2998,2419.6,2419.5,0.82646]
[1750526579931,3.2078,2419.8,2419.7,0.82639]
[1750526580126,3.2078,2419.8,2419.7,3.41904875]
[1750526580736,3.2078,2419.8,2419.7,0.82639]
[1750526580933,4.5073,2419.8,2419.7,0.82639]
[1750526582234,1.2995,2419.8,2419.7,0.82639]
[1750526583733,3.9036,2420.2,2419.5,2.59265875]
[1750526583934,3.2078,2420.2,2420.1,0.82625]
[1750526584137,6.464,2420.9,2420.6,0.82608]
[1750526584138,1.3893,2420.7,2420.6,0.82608]
[1750526584539,3.2078,2420.8,2420.7,0.82605]
[1750526584933,4.03383,2420.8,2420.5,0.6737]
[1750526585133,1.4013,2420.7,2420.5,0.6737]
[1750526585330,1.4013,2420.7,2420.6,0.82608]
[1750526585640,0.82611,2420.6,2420.3,0.82616]
[1750526585835,3.2078,2420.4,2420.3,0.82616]
[1750526586038,2.7589,2420.5,2420.3,0.82616]
[1750526586338,2.22745,2420.4,2420.3,0.82616]
[1750526586634,4.6091,2420.4,2419.5,3.4238]
[1750526586835,0.8262,2420.3,2420.1,0.82622]
[1750526587239,0.82626,2420.1,2419.9,6.463]
[1750526587440,0.82623,2420.2,2420.0,0.82628]
[1750526588138,0.82623,2420.2,2419.8,10.3445]
[1750526588437,3.2078,2420.4,2419.9,0.82631]
[1750526588740,0.8263,2420.0,2419.8,4.70783]
[1750526589130,2.59265875,2420.3,2419.9,0.82632]
[1750526589327,0.82627,2420.1,2419.9,0.82632]
[1750526589537,9.05565875,2420.3,2419.8,4.03414]
[1750526589738,0.706,2420.0,2419.8,4.03414]
[1750526590235,0.8264,2419.7,2419.6,0.82641]
[1750526590439,3.2078,2419.9,2419.4,6.463]
[1750526590440,8.54280875,2419.9,2419.4,6.463]
[1750526590734,3.2078,2419.6,2419.2,7.1128]
[1750526590939,3.2078,2419.6,2419.4,0.82649]
[1750526590940,1.47887,2419.5,2419.4,0.82649]
[1750526591254,1.47888,2419.5,2419.3,0.8265]
[1750526591428,0.6524,2419.5,2419.4,0.82649]
[1750526592236,1.47886,2419.5,2419.4,0.82649]
[1750526592741,0.6524,2419.5,2419.4,0.82649]
[1750526593442,3.2078,2419.6,2419.5,0.82646]
[1750526593641,4.03425,2419.6,2419.5,0.89493599]
[1750526593847,3.2078,2419.6,2419.5,0.89493599]
[1750526594949,4.03422,2419.6,2419.5,0.89493599]
[1750526595339,3.2078,2419.6,2419.5,0.89493599]
[1750526595746,4.03422,2419.6,2419.5,0.89493599]
[1750526597538,4.03422,2419.6,2419.5,0.06847599]
[1750526597841,4.03422,2419.6,2419.5,0.89493599]
[1750526598949,4.03422,2419.6,2419.5,0.06847599]
[1750526600348,4.03422,2419.6,2419.5,0.89493599]
[1750526601071,4.03422,2419.6,2419.5,0.06847599]
[1750526606953,5.36402,2419.6,2419.5,0.06847599]
[1750526607249,0.8267,2418.8,2418.7,9.09388007]
[1750526607551,0.8267,2418.8,2418.7,5.80045875]
[1750526608050,0.8267,2418.8,2418.7,6.62716875]
[1750526608944,0.8267,2418.8,2418.7,3.2078]
[1750526609363,0.82669,2418.9,2418.8,0.82669]
[1750526609547,0.8267,2418.8,2418.7,4.03451]
[1750526610045,0.82669,2418.9,2418.8,0.82669]
[1750526610450,0.8267,2418.8,2418.3,3.29342132]
[1750526610750,0.8267,2418.8,2417.8,7.83046701]
[1750526610751,0.82686,2418.4,2418.1,3.41957875]
[1750526610949,3.2078,2418.8,2418.6,0.82675]
[1750526611147,0.6889,2419.0,2418.7,3.26975875]
[1750526611352,0.6889,2419.0,2418.7,0.6771]
[1750526611353,0.8267,2418.8,2418.7,0.6771]
[1750526611550,4.0345,2418.8,2418.7,0.6771]
[1750526611745,0.8268,2418.5,2418.4,6.464]
[1750526611946,0.8268,2418.5,2418.4,7.1667]
[1750526612552,0.8268,2418.5,2418.4,0.7027]
[1750526612848,2.2112,2418.5,2418.4,0.7027]
[1750526614961,2.2112,2418.5,2418.4,0.77117599]
[1750526616260,2.2112,2418.5,2418.4,0.06847599]
[1750526620557,5.419,2418.5,2418.4,0.06847599]
[1750526622457,11.885,2418.5,2418.4,0.06847599]
[1750526627860,0.82694,2418.1,2418.0,0.6907]
[1750526628661,0.82694,2418.1,2418.0,1.51767]
[1750526629258,0.82694,2418.1,2418.0,0.75917599]
[1750526629459,0.82694,2418.1,2418.0,1.58614599]
[1750526629659,0.82694,2418.1,2418.0,0.75917599]
[1750526629856,2.13774,2418.1,2418.0,0.75917599]
[1750526632062,2.13774,2418.1,2418.0,1.58614599]
[1750526632358,0.82694,2418.1,2418.0,1.58614599]
[1750526633457,4.72442,2418.2,2418.1,0.82694]
[1750526633656,4.03472,2418.2,2418.1,0.82694]
[1750526635151,0.82694,2418.1,2418.0,0.75917599]
[1750526635462,0.82713,2417.6,2417.5,0.82712]
[1750526635759,0.82713,2417.6,2417.5,0.7121]
[1750526636266,2.06769,2417.7,2417.2,1.52412]
[1750526636458,0.8272,2417.4,2417.3,1.52241]
[1750526636760,0.8272,2417.4,2417.3,0.6952]
[1750526637155,4.6041,2417.5,2416.9,3.2078]
[1750526637359,0.82719,2417.4,2417.2,0.82721]
[1750526637883,4.03497,2417.5,2417.3,0.82721]
[1750526638062,4.03497,2417.5,2417.4,0.6952]
[1750526638359,4.03494,2417.5,2417.4,0.6952]
[1750526638866,4.03494,2417.5,2417.4,1.52238]
[1750526639464,3.2078,2417.5,2417.4,1.52238]
[1750526639664,4.03494,2417.5,2417.4,0.6952]
[1750526639861,4.03494,2417.5,2417.4,1.52238]
[1750526640357,4.03494,2417.5,2417.4,0.6952]
[1750526640557,0.82724,2417.2,2417.1,0.707]
[1750526640763,0.82741,2416.8,2416.7,0.8274]
[1750526640964,4.03518,2416.8,2416.7,0.707]
[1750526641862,0.82745,2416.6,2416.5,8.23275288]
[1750526642164,2.12584,2416.7,2416.5,8.23275288]
[1750526642366,0.82745,2416.6,2416.5,9.06020288]
[1750526642663,1.2984,2416.7,2416.6,0.82745]
[1750526642862,2.12585,2416.7,2416.5,9.06021288]
[1750526643064,2.12585,2416.7,2416.5,0.82746]
[1750526643563,2.12585,2416.7,2416.5,0.82745]
[1750526643769,1.2984,2416.7,2416.5,0.82745]
[1750526643962,2.12582,2416.7,2416.4,0.707]
[1750526644271,3.2078,2416.8,2416.7,0.82742]
[1750526644465,3.2078,2417.1,2416.9,0.82734]
[1750526644659,0.82735,2416.9,2416.8,1.3371]
[1750526645060,0.82735,2416.9,2416.8,0.6574]
[1750526645258,0.82735,2416.9,2416.8,1.48478]
[1750526645956,0.82735,2416.9,2416.8,0.6574]
[1750526646364,0.82735,2416.9,2416.8,1.48478]
[1750526647051,0.82735,2416.9,2416.8,0.6574]
[1750526647268,2.16744,2417.0,2416.8,0.6574]
[1750526647667,2.16744,2417.0,2416.9,0.82735]
[1750526648768,1.3401,2417.0,2416.9,0.82735]
[1750526649067,0.82745,2416.6,2416.5,0.06847599]
[1750526650165,0.8274,2416.8,2416.5,0.06847599]
[1750526650354,0.82742,2416.7,2416.5,0.06847599]
[1750526650558,1.49917,2416.9,2416.7,0.8274]
[1750526650759,0.82738,2416.8,2416.7,0.8274]
[1750526651061,1.3457,2417.2,2416.7,2.59265875]
[1750526651368,0.6503,2417.3,2417.1,0.82727]
[1750526651369,0.82722,2417.3,2417.1,0.82727]
[1750526651569,4.03501,2417.4,2417.2,0.82723]
[1750526651770,3.2078,2417.4,2417.2,0.82723]
[1750526651960,4.035,2417.4,2417.2,0.82723]
[1750526652362,0.82721,2417.3,2417.2,0.82723]
[1750526653266,2.59265875,2417.3,2416.9,3.2078]
[1750526653455,0.8273,2417.1,2417.0,0.82731]
[1750526653858,0.8273,2417.1,2416.9,4.03513]
[1750526654066,0.82731,2417.0,2416.9,4.72273]
[1750526655065,0.82731,2417.0,2416.9,3.8954]
[1750526655768,0.82731,2417.0,2416.9,4.72275]
[1750526656160,0.82731,2417.0,2416.9,3.2078]
[1750526656366,0.82738,2416.9,2416.7,0.82742]
[1750526656566,1.4026,2416.9,2416.7,0.82742]
[1750526657170,0.82742,2416.7,2416.6,3.2078]
[1750526657468,0.82741,2416.8,2416.6,4.03522]
[1750526657670,0.82742,2416.7,2416.6,0.82742]
[1750526657870,0.8274,2416.8,2416.6,0.82742]
[1750526658071,0.8274,2416.8,2416.6,7.30142]
[1750526658375,0.82742,2416.7,2416.6,7.30142]
[1750526658673,0.82742,2416.7,2416.6,6.474]
[1750526659476,0.82745,2416.6,2416.5,1.54374599]
[1750526659669,0.82745,2416.6,2416.5,6.474]
[1750526660272,0.82761,2416.2,2416.1,0.82761]
[1750526660474,2.0469,2416.5,2416.1,6.474]
[1750526660667,4.63955875,2416.5,2416.0,3.2078]
[1750526660968,2.0469,2416.5,2416.0,4.03542]
[1750526661169,0.82762,2416.1,2416.0,4.03544]
[1750526661373,0.82761,2416.2,2416.0,4.03544]
[1750526661779,0.82761,2416.2,2416.1,0.82762]
[1750526662476,2.0469,2416.5,2416.0,3.8831]
[1750526662778,0.82752,2416.4,2416.2,0.82757]
[1750526662978,2.87441,2416.5,2416.3,0.82755]
[1750526663187,0.82753,2416.4,2416.2,7.30156]
[1750526663588,0.82755,2416.3,2416.2,7.30156]
[1750526663886,1.3661,2416.4,2416.2,0.82757]
[1750526664076,0.82755,2416.3,2416.2,0.82757]
[1750526665080,2.19364,2416.4,2416.2,0.82757]
[1750526665584,0.82755,2416.3,2416.2,0.82757]
[1750526666180,0.82759,2416.2,2416.1,0.7088]
[1750526666393,0.82762,2416.1,2416.0,10.50944]
[1750526666688,0.6437,2416.1,2416.0,10.50944]
[1750526667190,1.3601,2416.2,2416.1,0.82762]
[1750526674896,1.3601,2416.2,2416.1,0.89609599]
[1750526675900,2.18769,2416.2,2416.1,0.89609599]
[1750526676194,1.3601,2416.2,2416.1,0.89609599]
[1750526682199,9.6818,2416.7,2416.1,0.06847599]
[1750526682394,0.6592,2416.5,2416.2,0.6962]
[1750526682599,0.82754,2416.4,2416.3,0.82754]
[1750526682799,2.11834,2416.4,2416.3,0.82754]
[1750526683919,0.82759,2416.2,2416.1,7.55208599]
[1750526684398,0.82757,2416.3,2416.2,0.82756]
[1750526686000,1.2908,2416.4,2416.1,0.06847599]
[1750526686001,0.82759,2416.2,2416.1,0.06847599]
[1750526686297,2.15799,2416.2,2416.1,0.06847599]
[1750526687002,2.15799,2416.2,2416.1,0.89609599]
[1750526687202,2.15799,2416.2,2416.1,0.06847599]
[1750526688500,2.81249,2416.2,2416.1,0.06847599]
[1750526693507,3.90595743,2416.2,2416.1,0.06847599]
[1750526696002,0.82772,2415.8,2415.7,3.2078]
[1750526696410,0.82783,2415.5,2415.4,3.2078]
[1750526696705,0.82786,2415.4,2415.3,1.51739]
[1750526696894,0.8279,2415.3,2415.2,0.82791]
[1750526697101,0.82793,2415.2,2415.1,10.69275]
[1750526697317,6.03896851,2415.6,2415.2,0.82792]
[1750526697318,0.82791,2415.3,2415.2,0.82792]
[1750526697799,0.82793,2415.2,2415.1,4.03574]
[1750526698195,0.82793,2415.3,2415.2,0.82793]
[1750526698899,0.82789,2415.4,2415.2,0.82793]
[1750526699100,1.382,2415.3,2415.2,0.82793]
[1750526699306,2.20982,2415.6,2415.4,0.82784]
[1750526699504,0.82783,2415.5,2415.4,0.82784]
[1750526699906,0.82783,2415.5,2415.3,0.82787]
[1750526700195,0.82783,2415.5,2415.4,0.82786]
[1750526700910,0.82786,2415.4,2415.3,0.82787]
[1750526701310,1.382,2415.6,2415.3,0.82787]
[1750526701609,0.8279,2415.3,2415.2,0.82791]
[1750526701902,1.382,2415.6,2415.3,0.82789]
[1750526701903,0.82788,2415.4,2415.3,0.82789]
[1750526702806,0.82793,2415.2,2415.1,4.03576]
[1750526703013,0.82793,2415.2,2415.1,3.2078]
[1750526703307,0.82793,2415.2,2415.1,4.03575]
[1750526703507,0.82784,2415.5,2415.4,0.82785]
[1750526703910,0.82784,2415.5,2415.3,0.82787]
[1750526704208,0.82784,2415.5,2415.3,1.52537]
[1750526704410,0.82786,2415.4,2415.3,1.52537]
[1750526704604,0.82786,2415.4,2415.3,0.6975]
[1750526707308,0.82786,2415.4,2415.3,1.52539]
[1750526707506,1.4126,2415.7,2415.3,0.6975]
[1750526707706,1.4147,2416.0,2415.8,0.82771]
[1750526707915,0.82765,2416.0,2415.9,0.6899]
[1750526708204,0.82761,2416.2,2416.0,0.82764]
[1750526708409,0.82763,2416.1,2415.9,1.51757]
[1750526709200,0.82763,2416.1,2416.0,0.82766]
[1750526710012,2.24231,2416.2,2416.0,0.82766]
[1750526710308,1.4147,2416.2,2416.0,0.82764]
[1750526710515,2.24231,2416.2,2416.0,0.82764]
[1750526710702,3.9029,2416.3,2416.1,0.82762]
[1750526710907,3.2078,2416.3,2416.2,0.82759]
[1750526711112,4.03535,2416.3,2416.1,0.8276]
[1750526711311,0.82759,2416.2,2416.1,0.8276]
[1750526711713,5.37056,2416.3,2416.2,0.82759]
[1750526712012,9.8078,2416.6,2416.2,0.82755]
[1750526712215,0.82753,2416.4,2416.3,1.48555]
[1750526712507,0.8275,2416.5,2416.3,8.08454]
[1750526712708,0.8275,2416.5,2416.3,8.08453]
[1750526713013,0.8275,2416.5,2416.4,0.82752]
[1750526713315,1.3352,2416.6,2416.3,8.08454]
[1750526713709,3.42919851,2416.4,2416.3,0.658]
[1750526713905,0.82764,2416.1,2416.0,6.599]
[1750526714211,0.82764,2416.1,2416.0,0.661]
[1750526714412,0.82769,2415.9,2415.8,0.6449]
[1750526715304,0.82772,2415.8,2415.7,0.661]
[1750526715510,0.82772,2415.8,2415.7,7.26]
[1750526715710,0.82772,2415.8,2415.7,8.08776]
[1750526716609,0.82772,2415.8,2415.7,1.48876]
[1750526716814,0.82772,2415.8,2415.7,8.08776]
[1750526717316,1.3445,2416.1,2415.8,0.82771]
[1750526717513,0.82765,2416.0,2415.9,0.82769]
[1750526718116,0.82765,2416.0,2415.8,3.2078]
[1750526718420,0.82765,2416.0,2415.9,0.82769]
[1750526718620,0.82769,2415.9,2415.8,4.0355]
[1750526718920,0.82768,2416.0,2415.8,4.0355]
[1750526719114,0.82768,2416.0,2415.9,0.82769]
[1750526719316,0.82762,2416.1,2415.9,0.82769]
[1750526719620,0.82765,2416.1,2415.9,0.82769]
[1750526720119,0.82765,2416.1,2416.0,0.82765]
[1750526721313,1.3865,2416.2,2416.1,0.82762]
[1750526721515,0.7073,2416.3,2416.1,4.03542]
[1750526721721,0.82758,2416.3,2416.2,0.82759]
[1750526721916,0.82754,2416.4,2416.2,1.52069]
[1750526722123,0.82755,2416.3,2416.2,1.52069]
[1750526723123,0.82755,2416.3,2416.2,0.6931]
[1750526724322,0.82755,2416.3,2416.2,1.52069]
[1750526724625,0.82759,2416.2,2416.1,10.63441]
[1750526725125,0.82759,2416.3,2416.2,0.82759]
[1750526725624,0.82759,2416.2,2416.1,10.6344]
[1750526726117,0.82758,2416.3,2416.2,0.82757]
[1750526726926,0.82758,2416.3,2416.2,0.82755]
[1750526727125,0.82759,2416.2,2416.1,10.6344]
[1750526727619,0.82759,2416.2,2416.1,4.0354]
[1750526728728,0.82759,2416.2,2416.1,3.2078]
[1750526730931,0.82759,2416.2,2416.1,4.03542]
[1750526731830,0.82759,2416.2,2416.1,3.2078]
[1750526733333,0.82759,2416.2,2416.1,4.03542]
[1750526733529,0.82759,2416.2,2416.1,3.2078]
[1750526733729,0.82766,2416.0,2415.9,7.42866]
[1750526734134,0.82766,2416.0,2415.9,6.601]
[1750526734322,2.12856,2416.0,2415.9,6.601]
[1750526735029,2.12856,2416.0,2415.9,7.42869]
[1750526735638,2.12856,2416.0,2415.9,7.49716599]
[1750526738240,1.3009,2416.0,2415.9,7.49716599]
[1750526738438,2.12855,2416.0,2415.9,7.49716599]
[1750526742845,1.3009,2416.0,2415.9,7.49716599]
[1750526744347,2.12855,2416.0,2415.9,7.49716599]
[1750526744545,2.12855,2416.0,2415.9,6.66947599]
[1750526745245,1.3009,2416.0,2415.9,7.49716599]
[1750526745742,1.3009,2416.0,2415.9,0.89616599]
[1750526747140,0.82758,2416.3,2415.9,0.06847599]
[1750526747342,0.82759,2416.2,2416.1,3.2078]
[1750526747547,0.82759,2416.2,2416.1,4.03542]
[1750526750452,0.82759,2416.2,2416.1,3.2078]
[1750526750945,3.42926851,2416.2,2416.1,0.06847599]
[1750526751151,4.53055897,2416.2,2416.1,0.06847599]
[1750526755163,4.52983946,2416.2,2416.1,0.06847599]
[1750526755856,5.84803946,2416.2,2416.1,0.06847599]
[1750526760153,0.82772,2415.8,2415.6,13.09629462]
[1750526760353,3.42943851,2415.7,2415.6,3.2078]
[1750526760553,5.48053851,2415.7,2415.6,3.2078]
[1750526761855,0.82783,2415.5,2415.4,8.08494]
[1750526762251,0.82783,2415.5,2415.4,1.54094]
[1750526762452,2.15812,2415.6,2415.3,6.544]
[1750526762656,0.6649,2415.4,2415.3,6.544]
[1750526763054,0.6649,2415.4,2415.3,7.37189]
[1750526763255,0.6649,2415.4,2415.3,0.82789]
[1750526763555,0.6649,2415.4,2415.2,3.2078]
[1750526763763,4.75986851,2415.3,2415.2,3.2078]
[1750526764169,4.75986851,2415.3,2415.2,3.27627599]
[1750526767165,0.6649,2415.4,2415.2,3.27627599]
[1750526767370,0.82785,2415.5,2415.4,0.82786]
[1750526767766,0.82786,2415.4,2415.3,0.6756]
[1750526768169,2.11606,2415.4,2415.3,0.6756]
[1750526768468,0.82789,2415.3,2415.2,3.27627599]